bitfinex/quotes_SOLUSD_20251013
["timestamp","ask_amount","ask_price","bid_price","bid_amount"]
[1760338726391,0.72,197.39,197.38,15.94284464]
[1760338727093,0.72,197.39,197.38,16.66284464]
[1760338727296,0.72,197.39,197.38,26.22112446]
[1760338727696,0.72,197.4,197.38,26.22112446]
[1760338727894,0.72,197.39,197.38,15.94284464]
[1760338728098,0.72,197.39,197.38,25.50112446]
[1760338728678,0.72,197.43,197.41,20.8]
[1760338728882,0.72,197.42,197.41,20.8]
[1760338729602,0.72,197.42,197.41,25.86559951]
[1760338730492,0.72,197.42,197.34,25.53696926]
[1760338730493,0.72,197.38,197.36,10.87647521]
[1760338730697,0.72,197.38,197.36,21.15475503]
[1760338731003,0.72,197.38,197.37,21.15475503]
[1760338731380,0.72,197.38,197.37,16.66310134]
[1760338731590,0.82172915,197.38,197.37,16.66310134]
[1760338731999,0.82172915,197.38,197.37,15.94310134]
[1760338734904,0.72,197.37,197.34,0.2]
[1760338735089,0.72,197.35,197.34,16.14387158]
[1760338735288,0.72,197.35,197.34,11.07647521]
[1760338736108,1.43,197.35,197.34,0.2]
[1760338737891,1.43,197.35,197.34,11.07647521]
[1760338738913,1.43,197.35,197.34,0.2]
[1760338739309,0.72,197.35,197.34,0.2]
[1760338739896,1.43,197.35,197.34,0.2]
[1760338740314,3.99576236,197.35,197.34,0.2]
[1760338741105,0.72,197.35,197.34,0.2]
[1760338742788,3.99576236,197.35,197.34,0.2]
[1760338742997,6.49713959,197.35,197.34,0.2]
[1760338743197,0.72,197.35,197.34,0.2]
[1760338751002,0.72,197.35,197.34,16.14387158]
[1760338751206,0.72,197.35,197.34,19.42963394]
[1760338751407,0.72,197.36,197.34,19.42963394]
[1760338751621,0.82388766,197.36,197.35,14.16223757]
[1760338752038,0.82388766,197.36,197.35,99.62937716]
[1760338752345,0.10388766,197.36,197.35,120.42937716]
[1760338757921,0.10388766,197.36,197.35,117.1436148]
[1760338758121,0.10388766,197.36,197.35,119.70937716]
[1760338758316,0.10388766,197.36,197.35,120.38937716]
[1760338759515,0.80388766,197.36,197.35,15.9436148]
[1760338759722,1.52388766,197.36,197.35,15.9436148]
[1760338761638,1.52388766,197.36,197.35,10.87647521]
[1760338763028,4.08965002,197.36,197.34,0.2]
[1760338763275,0.72,197.35,197.34,0.2]
[1760338763551,1.42,197.35,197.34,0.2]
[1760338763916,2.66965002,197.36,197.35,10.87647521]
[1760338763917,0.10388766,197.36,197.35,10.87647521]
[1760338764141,0.10388766,197.36,197.35,14.12223757]
[1760338766537,0.10388766,197.36,197.35,19.18937716]
[1760338768343,0.107785,197.38,197.35,100.09609111]
[1760338768542,0.09783825,197.39,197.38,10.87647521]
[1760338768844,0.09783825,197.39,197.38,28.77165644]
[1760338769046,0.09783825,197.39,197.38,29.45165644]
[1760338769731,0.09783825,197.39,197.38,19.188607]
[1760338769934,0.09783825,197.39,197.38,18.508607]
[1760338770444,0.72,197.38,197.37,5.06658136]
[1760338770763,0.72,197.38,197.37,7.63234372]
[1760338771743,0.82124968,197.38,197.37,7.63234372]
[1760338773451,0.72,197.37,197.36,10.87647521]
[1760338773744,1.42,197.37,197.36,18.50912042]
[1760338774934,0.72,197.37,197.36,18.50912042]
[1760338775140,0.72,197.37,197.36,19.18912042]
[1760338775364,0.82124968,197.38,197.36,18.50912042]
[1760338775528,0.82124968,197.38,197.37,2.56576236]
[1760338775732,0.10124968,197.38,197.37,3.24576236]
[1760338776132,0.09419213,197.4,197.39,31.67647521]
[1760338776436,0.09419213,197.4,197.39,44.50528701]
[1760338776748,0.09419213,197.4,197.39,45.18528701]
[1760338777152,0.09419213,197.4,197.39,50.25139978]
[1760338777347,0.09136532,197.41,197.4,10.87647521]
[1760338777542,0.09136532,197.41,197.4,24.38528701]
[1760338777855,0.81136532,197.41,197.4,23.70528701]
[1760338778054,1.51136532,197.41,197.4,13.44223757]
[1760338778354,0.81136532,197.41,197.4,13.44223757]
[1760338778940,0.81136532,197.41,197.4,23.70528701]
[1760338779252,0.81136532,197.41,197.4,28.77114313]
[1760338779632,0.81136532,197.41,197.4,15.94233133]
[1760338779960,0.81136532,197.41,197.4,18.50809369]
[1760338780745,0.81136532,197.41,197.4,21.07385605]
[1760338781456,0.09136532,197.41,197.4,21.75385605]
[1760338786752,0.09136532,197.41,197.4,21.07385605]
[1760338786952,0.09136532,197.41,197.4,21.75385605]
[1760338791262,0.10925273,197.42,197.4,102.15385605]
[1760338791455,0.83130643,197.43,197.42,13.44223757]
[1760338791456,0.11130643,197.43,197.42,13.44223757]
[1760338791763,0.19324272,197.44,197.43,10.87647521]
[1760338791964,0.0944721,197.44,197.43,14.12223757]
[1760338792463,0.0944721,197.44,197.43,19.18732392]
[1760338793279,0.8144721,197.44,197.43,18.50732392]
[1760338793458,1.4944721,197.44,197.43,19.94718406]
[1760338793646,1.4944721,197.44,197.43,4.0056225]
[1760338795348,0.8144721,197.44,197.43,9.07070885]
[1760338795547,1.4944721,197.44,197.43,5.06508635]
[1760338795753,1.4944721,197.44,197.43,9.07070885]
[1760338796560,0.8144721,197.44,197.43,9.07070885]
[1760338796767,1.4944721,197.44,197.43,9.07070885]
[1760338798066,0.8144721,197.44,197.43,9.07070885]
[1760338799560,0.8144721,197.44,197.43,9.75070885]
[1760338799765,0.0944721,197.44,197.43,9.75070885]
[1760338799952,0.8144721,197.44,197.43,9.75070885]
[1760338800147,0.8144721,197.44,197.43,5.06508635]
[1760338800453,0.8144721,197.44,197.43,9.07070885]
[1760338800648,0.0944721,197.44,197.43,9.07070885]
[1760338801070,0.0944721,197.44,197.43,9.75070885]
[1760338801250,0.0944721,197.44,197.43,9.07070885]
[1760338801650,0.0944721,197.44,197.43,20.62718406]
[1760338801852,0.0944721,197.44,197.43,19.94718406]
[1760338802169,0.0944721,197.44,197.43,20.62718406]
[1760338802359,0.8144721,197.44,197.43,19.94718406]
[1760338802754,1.4944721,197.44,197.43,4.0056225]
[1760338802952,1.4944721,197.44,197.42,14.88209771]
[1760338803160,1.4,197.43,197.41,15.94183032]
[1760338803367,0.72,197.43,197.42,14.88209771]
[1760338804063,0.72,197.43,197.42,19.94744063]
[1760338804264,0.72,197.43,197.42,20.62744063]
[1760338804477,0.0944721,197.44,197.42,20.62744063]
[1760338804673,0.8144721,197.44,197.43,4.6856225]
[1760338804858,0.0944721,197.44,197.43,4.6856225]
[1760338805059,0.0944721,197.44,197.43,4.0056225]
[1760338805582,0.0944721,197.44,197.43,4.6856225]
[1760338805776,0.8144721,197.44,197.43,4.6856225]
[1760338805982,0.8144721,197.44,197.43,41.42718406]
[1760338806186,0.0944721,197.44,197.43,41.42718406]
[1760338806560,0.0944721,197.44,197.43,121.82718406]
[1760338806762,1e-08,197.44,197.43,41.42718406]
[1760338806965,0.11045059,197.46,197.44,10.87647521]
[1760338807285,0.11045059,197.46,197.45,14.88209771]
[1760338807588,0.11045059,197.46,197.45,15.56209771]
[1760338808081,0.10412808,197.48,197.45,15.56209771]
[1760338808082,0.10412808,197.48,197.46,10.87647521]
[1760338808304,0.10412808,197.48,197.47,14.88209771]
[1760338808488,0.10412808,197.48,197.47,15.56209771]
[1760338808992,0.10412808,197.48,197.47,19.56772021]
[1760338809579,0.09737247,197.49,197.48,10.87647521]
[1760338809779,0.09737247,197.49,197.48,19.56772021]
[1760338810090,0.09737247,197.49,197.48,24.63152413]
[1760338810667,0.72,197.55,197.54,10.87647521]
[1760338810871,0.72,197.55,197.54,14.88209771]
[1760338811086,1.4,197.55,197.54,14.88209771]
[1760338811309,0.72,197.55,197.54,14.88209771]
[1760338811667,0.83129215,197.55,197.54,14.88209771]
[1760338811984,0.83129215,197.55,197.54,19.94436358]
[1760338812173,0.11129215,197.55,197.54,19.94436358]
[1760338814175,0.11129215,197.55,197.54,20.62436358]
[1760338814379,0.11129215,197.55,197.54,19.94436358]
[1760338815399,0.79129215,197.55,197.54,19.94436358]
[1760338815599,0.11129215,197.55,197.54,19.94436358]
[1760338816101,0.10516191,197.57,197.54,20.62436358]
[1760338816278,0.09359125,197.63,197.57,31.67647521]
[1760338816480,0.09359125,197.63,197.61,10.87647521]
[1760338816797,0.09359125,197.63,197.61,15.56209771]
[1760338817194,0.09359125,197.63,197.61,10.87647521]
[1760338817374,0.09359125,197.63,197.61,15.56209771]
[1760338818075,0.09359125,197.63,197.62,15.56209771]
[1760338818290,0.09359125,197.63,197.62,20.62231428]
[1760338819514,0.09900303,197.64,197.63,14.88209771]
[1760338819672,0.09900303,197.64,197.63,15.56209771]
[1760338820579,0.09900303,197.64,197.63,19.94205824]
[1760338822376,19.99999999,197.82,197.67,10.87647521]
[1760338822599,2.64284416,197.75,197.71,10.87647521]
[1760338822801,19.99999999,197.82,197.75,10.87647521]
[1760338823105,0.71,197.81,197.72,10.87647521]
[1760338823408,0.71,197.8,197.72,26.08213171]
[1760338823594,0.71,197.79,197.7,10.87647521]
[1760338823910,0.71,197.78,197.76,4.0056225]
[1760338824080,2.64280571,197.83,197.77,4.0056225]
[1760338824279,2.64280571,197.83,197.77,20.8]
[1760338824480,5.05393791,197.87,197.83,10.87647521]
[1760338824681,0.71,197.86,197.81,4.0056225]
[1760338824892,0.71,197.85,197.82,10.87647521]
[1760338825088,25.5156225,197.84,197.76,15.2025743]
[1760338825399,0.71,197.83,197.79,10.87647521]
[1760338825588,0.71,197.82,197.79,14.88209771]
[1760338825791,0.71,197.81,197.79,10.87647521]
[1760338826290,0.71,197.8,197.79,10.87647521]
[1760338826489,0.71,197.8,197.79,4.0056225]
[1760338827090,0.71,197.8,197.79,14.88209771]
[1760338827605,20.8,197.82,197.8,10.87647521]
[1760338827780,5.05443635,197.85,197.81,14.88209771]
[1760338827985,0.71,197.84,197.83,10.87647521]
[1760338828180,0.71,197.84,197.82,4.0056225]
[1760338828181,0.71,197.84,197.82,10.87647521]
[1760338828489,0.71,197.83,197.82,14.88209771]
[1760338828891,0.71,197.83,197.82,10.87647521]
[1760338829085,0.71,197.83,197.76,0.68]
[1760338829406,0.71,197.83,197.8,10.87647521]
[1760338829592,0.71,197.83,197.82,4.0056225]
[1760338830108,0.71,197.83,197.81,4.0056225]
[1760338830288,25.85436838,197.85,197.81,4.0056225]
[1760338830488,0.71,197.84,197.8,4.0056225]
[1760338830816,0.71,197.83,197.8,4.0056225]
[1760338830998,0.71,197.82,197.8,4.0056225]
[1760338831303,0.71,197.83,197.81,4.0056225]
[1760338831499,0.71,197.83,197.82,14.88209771]
[1760338831699,0.81581464,197.83,197.82,14.88209771]
[1760338832208,0.81581464,197.83,197.82,10.87647521]
[1760338832601,0.81581464,197.83,197.82,14.88209771]
[1760338833326,0.81581464,197.83,197.82,10.87647521]
[1760338833487,0.81581464,197.83,197.8,10.87647521]
[1760338833684,0.71,197.82,197.8,10.87647521]
[1760338833883,0.71,197.81,197.8,10.87647521]
[1760338835000,0.10581464,197.83,197.8,4.0056225]
[1760338835207,0.71,197.82,197.8,4.0056225]
[1760338835393,0.71,197.82,197.78,10.87647521]
[1760338835714,0.71,197.81,197.77,4.0056225]
[1760338835890,21.51,197.8,197.75,10.87647521]
[1760338836091,0.71,197.79,197.75,10.87647521]
[1760338836291,0.71,197.78,197.75,10.87647521]
[1760338836790,0.71,197.78,197.75,4.0056225]
[1760338837395,20.8,197.8,197.76,4.0056225]
[1760338837594,0.10581464,197.83,197.8,10.87647521]
[1760338837796,0.10581464,197.83,197.82,14.88209771]
[1760338838201,0.10581464,197.83,197.82,15.56209771]
[1760338838596,0.10581464,197.83,197.82,10.87647521]
[1760338838907,0.10581464,197.83,197.82,14.88209771]
[1760338839313,0.10581464,197.83,197.82,10.87647521]
[1760338839314,0.81581464,197.83,197.82,10.87647521]
[1760338839893,0.81581464,197.83,197.8,4.0056225]
[1760338841113,0.71,197.82,197.79,10.87647521]
[1760338841316,0.71,197.81,197.79,10.87647521]
[1760338841692,0.71,197.81,197.77,9.51638476]
[1760338841915,0.71,197.8,197.77,9.51638476]
[1760338842902,5.16072349,197.83,197.77,9.51638476]
[1760338843106,0.71,197.82,197.79,10.87647521]
[1760338844018,5.76521742,197.82,197.79,10.87647521]
[1760338844513,0.71,197.81,197.79,10.87647521]
[1760338844717,5.71521742,197.82,197.79,10.87647521]
[1760338845851,10.17638476,197.81,197.72,0.71]
[1760338846111,10.17638476,197.81,197.75,9.51638476]
[1760338846303,10.17638476,197.8,197.75,10.87647521]
[1760338846500,0.72,197.79,197.75,10.87647521]
[1760338846697,0.72,197.78,197.75,10.87647521]
[1760338846930,5.77637573,197.78,197.75,10.87647521]
[1760338848219,5.05637573,197.78,197.75,10.87647521]
[1760338848529,0.72,197.77,197.75,10.87647521]
[1760338848821,20.8,197.82,197.77,10.87647521]
[1760338849027,0.10581464,197.83,197.82,10.87647521]
[1760338849525,0.10581464,197.83,197.81,10.87647521]
[1760338851034,0.72,197.82,197.74,0.7]
[1760338851225,0.72,197.82,197.78,10.87647521]
[1760338851411,0.72,197.81,197.78,10.87647521]
[1760338851606,0.1022921,197.79,197.78,20.39285997]
[1760338852026,0.1022921,197.79,197.78,21.09285997]
[1760338852425,0.1022921,197.79,197.78,26.14898293]
[1760338852622,0.8222921,197.79,197.72,0.7]
[1760338852827,0.8222921,197.79,197.75,10.87647521]
[1760338853025,0.72,197.78,197.72,0.7]
[1760338853227,10.23638476,197.78,197.73,10.87647521]
[1760338853423,0.72,197.77,197.73,10.87647521]
[1760338853736,0.72,197.77,197.72,9.51638476]
[1760338853737,10.23638476,197.77,197.72,10.87647521]
[1760338853932,10.23638476,197.77,197.66,33.44743125]
[1760338853933,9.51638476,197.73,197.67,9.51638476]
[1760338854227,9.51638476,197.73,197.66,0.7]
[1760338854228,9.51638476,197.71,197.66,10.21638476]
[1760338854530,14.57404205,197.72,197.65,5.05932177]
[1760338854713,0.72,197.7,197.66,9.51638476]
[1760338855116,0.72,197.7,197.67,10.87647521]
[1760338855535,5.05810565,197.71,197.67,10.87647521]
[1760338855717,5.77810565,197.71,197.67,10.87647521]
[1760338857224,5.05810565,197.71,197.67,17.27234546]
[1760338857924,5.05762595,197.73,197.69,6.39587025]
[1760338858238,7.70115181,197.74,197.69,6.39587025]
[1760338858412,8.42115181,197.74,197.69,6.39587025]
[1760338858617,0.72,197.73,197.63,10.87647521]
[1760338858816,11.45352754,197.72,197.67,10.87647521]
[1760338859018,0.72,197.71,197.67,17.27234546]
[1760338859512,11.45352754,197.72,197.67,17.97234546]
[1760338859513,5.05765729,197.72,197.67,17.97234546]
[1760338860232,5.05765729,197.72,197.67,11.57647521]
[1760338860426,5.77765729,197.72,197.67,17.97234546]
[1760338860620,7.70138123,197.74,197.69,17.27234546]
[1760338860825,0.72,197.73,197.69,17.27234546]
[1760338861133,0.72,197.72,197.67,6.39587025]
[1760338861339,0.72,197.71,197.68,10.87647521]
[1760338861633,0.72,197.71,197.65,5.0592017]
[1760338861838,0.72,197.71,197.67,10.87647521]
[1760338862342,0.72,197.71,197.67,17.27234546]
[1760338862533,2.64398184,197.74,197.7,17.27234546]
[1760338862835,25.85661918,197.77,197.73,6.39587025]
[1760338863042,2.64338619,197.76,197.72,17.27234546]
[1760338863246,0.72,197.75,197.67,5.05884166]
[1760338863417,2.64338619,197.76,197.7,10.87647521]
[1760338863625,9.75925644,197.76,197.7,17.27234546]
[1760338863948,0.72,197.75,197.7,17.27234546]
[1760338864125,2.64338619,197.76,197.73,6.39587025]
[1760338864319,7.70024639,197.76,197.72,17.27234546]
[1760338864741,7.70024639,197.76,197.72,17.97234546]
[1760338865132,8.42024639,197.76,197.72,10.87647521]
[1760338866532,7.70024639,197.76,197.72,17.97234546]
[1760338867327,7.70024639,197.76,197.72,17.27234546]
[1760338867740,8.42024639,197.76,197.72,17.27234546]
[1760338868648,7.70024639,197.76,197.7,5.75814173]
[1760338868951,7.70024639,197.76,197.72,17.27234546]
[1760338869249,2.64338619,197.76,197.74,6.39587025]
[1760338869427,0.1022921,197.79,197.74,17.97234546]
[1760338869630,3.36315275,197.78,197.74,10.87647521]
[1760338870048,9.759023,197.78,197.74,10.87647521]
[1760338870342,14.815176,197.78,197.74,10.87647521]
[1760338870540,8.41930575,197.78,197.74,10.87647521]
[1760338870747,14.815176,197.78,197.74,10.87647521]
[1760338870942,8.41930575,197.78,197.74,17.27234546]
[1760338871248,7.69930575,197.78,197.74,10.87647521]
[1760338871420,7.69930575,197.78,197.74,11.57647521]
[1760338871625,0.09631598,197.75,197.74,11.57647521]
[1760338872452,0.09631598,197.75,197.74,13.4330408]
[1760338872645,0.09631598,197.75,197.74,10.87647521]
[1760338873053,0.09631598,197.75,197.74,11.57647521]
[1760338873754,0.09631598,197.75,197.74,10.87647521]
[1760338875073,3.37288157,197.75,197.7,10.87647521]
[1760338875244,3.27656559,197.74,197.7,10.87647521]
[1760338875940,0.72,197.74,197.7,10.87647521]
[1760338876235,5.1532063,197.75,197.7,11.57647521]
[1760338876429,0.72,197.74,197.7,10.87647521]
[1760338877248,0.72,197.74,197.7,91.27647521]
[1760338877449,0.72,197.74,197.7,96.33458123]
[1760338878749,0.72,197.74,197.7,96.99458123]
[1760338879236,5.1532063,197.75,197.7,96.99458123]
[1760338879432,2.55656559,197.72,197.66,0.66]
[1760338879637,2.55656559,197.67,197.61,3.21656559]
[1760338879835,2.55656559,197.63,197.58,0.66]
[1760338880148,3.22656559,197.62,197.57,10.87647521]
[1760338880348,2.55656559,197.63,197.59,10.87647521]
[1760338880735,2.55656559,197.63,197.58,3.21656559]
[1760338880955,3.22656559,197.63,197.58,0.66]
[1760338881158,3.22656559,197.62,197.59,10.87647521]
[1760338881345,6.40197037,197.63,197.58,10.87647521]
[1760338881558,11.4621326,197.63,197.58,10.87647521]
[1760338881753,6.40197037,197.62,197.58,10.87647521]
[1760338882344,0.67,197.61,197.54,0.66]
[1760338882643,6.40197037,197.59,197.56,10.87647521]
[1760338882970,7.07197037,197.58,197.54,10.87647521]
[1760338883171,6.40197037,197.55,197.49,10.87647521]
[1760338883383,6.40197037,197.56,197.51,17.27844558]
[1760338883659,12.13378157,197.56,197.51,17.27844558]
[1760338883867,5.7318112,197.56,197.51,17.27844558]
[1760338884172,6.40197037,197.53,197.47,11.53647521]
[1760338884361,7.07197037,197.52,197.45,5.72452562]
[1760338884670,6.40197037,197.51,197.45,6.40197037]
[1760338884877,7.07197037,197.51,197.44,5.06482886]
[1760338885050,7.07197037,197.51,197.45,10.87647521]
[1760338885253,0.67,197.5,197.45,17.27844558]
[1760338885555,11.46519027,197.51,197.45,17.27844558]
[1760338885754,0.67,197.5,197.45,17.27844558]
[1760338885954,0.67,197.53,197.48,10.87647521]
[1760338886156,6.40197037,197.53,197.48,10.87647521]
[1760338886356,0.67,197.52,197.47,17.27844558]
[1760338886551,20.8,197.55,197.47,17.93844558]
[1760338886759,0.67,197.54,197.47,17.93844558]
[1760338886949,7.07197037,197.54,197.48,6.40197037]
[1760338887270,6.40197037,197.53,197.47,17.93844558]
[1760338887572,6.40197037,197.5,197.46,10.87647521]
[1760338887776,5.7328455,197.52,197.43,0.2]
[1760338887777,6.40197037,197.48,197.43,0.2]
[1760338887959,6.40197037,197.46,197.43,0.2]
[1760338888157,7.07197037,197.47,197.43,0.2]
[1760338888346,0.67,197.46,197.43,0.2]
[1760338890065,32.26576791,197.49,197.44,17.27844558]
[1760338890274,32.26576791,197.49,197.44,10.87647521]
[1760338890449,0.67,197.48,197.44,10.87647521]
[1760338891083,0.67,197.47,197.44,10.87647521]
[1760338891374,27.20197037,197.45,197.43,0.2]
[1760338891576,6.40197037,197.44,197.43,0.2]
[1760338891775,12.13680019,197.44,197.43,0.2]
[1760338892548,5.06482982,197.44,197.43,0.2]
[1760338892755,20.89210026,197.45,197.43,0.2]
[1760338892956,25.95668475,197.45,197.43,0.2]
[1760338893178,26.62668475,197.45,197.43,0.2]
[1760338893480,33.02865512,197.45,197.43,0.2]
[1760338893775,12.13680019,197.44,197.43,0.2]
[1760338894369,20.8,197.41,197.34,0.2]
[1760338894562,6.40197037,197.36,197.34,0.2]
[1760338894763,6.40197037,197.35,197.34,0.2]
[1760338894965,20.8,197.41,197.34,0.2]
[1760338894966,7.07197037,197.36,197.34,0.2]
[1760338895397,20.8,197.41,197.34,0.2]
[1760338895684,27.20197037,197.39,197.34,0.2]
[1760338896073,12.1383398,197.38,197.34,0.2]
[1760338898261,6.40197037,197.37,197.34,0.2]
[1760338898458,7.07197037,197.37,197.34,0.2]
[1760338899574,12.13867414,197.37,197.34,0.2]
[1760338900779,5.73670377,197.37,197.34,0.2]
[1760338901085,7.715106,197.38,197.35,10.87647521]
[1760338901277,14.11707637,197.38,197.34,0.2]
[1760338901456,7.07197037,197.37,197.34,0.2]
[1760338901765,0.67,197.37,197.34,0.2]
[1760338902863,5.73663943,197.37,197.34,0.2]
[1760338903064,12.1386098,197.37,197.34,0.2]
[1760338903266,7.07197037,197.36,197.34,0.2]
[1760338903965,0.67,197.35,197.34,0.2]
[1760338905075,7.07197037,197.35,197.34,0.2]
[1760338906379,0.67,197.35,197.34,0.2]
[1760338906876,12.13910996,197.35,197.34,0.2]
[1760338908282,20.8,197.32,197.31,0.2]
[1760338908581,27.20197037,197.32,197.31,0.2]
[1760338908771,32.96988036,197.32,197.31,0.2]
[1760338908955,35.00317556,197.32,197.31,0.2]
[1760338910658,35.00317556,197.32,197.31,1e-08]
[1760338911678,35.10464025,197.32,197.31,1e-08]
[1760338912174,28.70266988,197.32,197.31,1e-08]
[1760338912375,35.10464025,197.32,197.31,1e-08]
[1760338915394,38.2753364,197.32,197.31,1e-08]
[1760338915978,76.28466134,197.32,197.24,0.2]
[1760338916181,9.57266652,197.28,197.24,0.2]
[1760338916692,10.27266652,197.28,197.24,0.2]
[1760338916866,5.06893755,197.28,197.24,0.2]
[1760338917069,7.10274967,197.28,197.24,0.2]
[1760338917277,15.34160407,197.28,197.24,0.2]
[1760338917477,9.7854483,197.28,197.24,0.2]
[1760338919968,20.8,197.25,197.24,0.2]
[1760338920294,20.8,197.24,197.23,1e-08]
[1760338920505,30.58647627,197.24,197.23,1e-08]
[1760338922412,20.8,197.2,197.19,0.2]
[1760338922589,33.90401541,197.2,197.19,0.2]
[1760338922905,34.60401541,197.2,197.19,0.2]
[1760338923109,36.63875865,197.2,197.19,0.2]
[1760338923437,38.19194329,197.2,197.19,1e-08]
[1760338923570,70.86942806,197.2,197.16,1e-08]
[1760338923891,30.38620614,197.17,197.16,1e-08]
[1760338924275,31.08620614,197.17,197.16,1e-08]
[1760338924469,36.15797162,197.17,197.16,1e-08]
[1760338924738,25.87176548,197.17,197.16,1e-08]
[1760338925029,35.45797162,197.17,197.16,1e-08]
[1760338926015,36.15797162,197.17,197.16,1e-08]
[1760338927995,35.45797162,197.17,197.16,1e-08]
[1760338929121,25.87176548,197.17,197.16,0.69000001]
[1760338929317,5.07176548,197.17,197.16,1e-08]
[1760338929498,5.07176548,197.17,197.16,0.69000001]
[1760338929695,12.67566384,197.23,197.16,10.27620615]
[1760338929908,9.58620614,197.24,197.18,9.58620614]
[1760338930115,9.58620614,197.24,197.19,0.69]
[1760338930327,2.6509443,197.23,197.2,0.69]
[1760338930514,2.6509443,197.23,197.21,0.69]
[1760338930925,7.72125098,197.23,197.21,0.69]
[1760338931100,2.6509443,197.23,197.22,0.69]
[1760338931302,17.30737302,197.23,197.18,0.69]
[1760338931519,9.58620614,197.21,197.18,0.69]
[1760338931734,9.58620614,197.22,197.19,0.69]
[1760338932320,30.38620614,197.2,197.16,1e-08]
[1760338932526,9.58620614,197.18,197.16,1e-08]
[1760338932907,5.07170679,197.18,197.16,0.69000001]
[1760338933108,20.8,197.18,197.17,0.69]
[1760338934131,5.07099554,197.2,197.17,0.69]
[1760338934337,2.74507372,197.23,197.19,9.58620614]
[1760338934541,2.74507372,197.23,197.2,0.69]
[1760338934713,2.74507372,197.23,197.21,0.69]
[1760338935109,7.81530509,197.23,197.22,0.69]
[1760338935609,7.81530509,197.23,197.17,5.07164086]
[1760338935814,2.74507372,197.23,197.2,0.69]
[1760338936017,7.81530769,197.23,197.21,0.69]
[1760338936222,7.81530769,197.23,197.22,0.69]
[1760338936522,17.40151383,197.23,197.18,0.69]
[1760338936728,2.74507372,197.23,197.2,9.58620614]
[1760338936925,2.74507372,197.23,197.21,0.65]
[1760338937125,2.74507372,197.23,197.22,10.23620614]
[1760338937309,0.09412942,197.23,197.22,10.23620614]
[1760338939220,0.09412942,197.23,197.22,0.65]
[1760338939417,20.89412942,197.23,197.16,1e-08]
[1760338939628,9.58620614,197.21,197.16,1e-08]
[1760338939813,9.58620614,197.17,197.16,1e-08]
[1760338940320,20.8,197.2,197.16,0.65000001]
[1760338940837,20.8,197.2,197.17,0.65]
[1760338941339,14.65745721,197.19,197.16,1e-08]
[1760338941526,30.38620614,197.21,197.17,0.65]
[1760338941832,5.07107868,197.2,197.17,0.65]
[1760338942608,25.87074919,197.21,197.18,0.65]
[1760338943517,9.58620614,197.19,197.16,1e-08]
[1760338943919,9.58620614,197.2,197.16,1e-08]
[1760338944112,9.58620614,197.18,197.16,1e-08]
[1760338944426,9.58620614,197.17,197.16,1e-08]
[1760338944630,10.24620614,197.17,197.16,1e-08]
[1760338945325,15.31797162,197.17,197.16,1e-08]
[1760338945512,14.65797162,197.17,197.16,1e-08]
[1760338945710,5.07176548,197.17,197.16,1e-08]
[1760338946436,14.65797162,197.17,197.16,1e-08]
[1760338947027,5.07176548,197.17,197.16,1e-08]
[1760338948119,5.07073677,197.21,197.16,10.23620615]
[1760338948448,14.65694291,197.21,197.16,9.58620615]
[1760338948739,14.65694291,197.21,197.17,0.65]
[1760338948913,25.87073677,197.21,197.18,0.65]
[1760338949228,0.09412942,197.23,197.19,10.23620614]
[1760338949429,5.16440776,197.23,197.2,0.65]
[1760338949646,20.8,197.21,197.2,0.65]
[1760338950241,26.53086537,197.21,197.16,20.46268136]
[1760338950424,9.58620614,197.17,197.16,1e-08]
[1760338950964,10.24620614,197.17,197.16,1e-08]
[1760338951814,0.75750055,197.17,197.16,1e-08]
[1760338952036,14.75547217,197.17,197.16,1e-08]
[1760338952227,15.41547217,197.17,197.16,1e-08]
[1760338953244,5.82926603,197.17,197.16,1e-08]
[1760338953428,15.41547217,197.17,197.16,1e-08]
[1760338957774,5.16926603,197.17,197.16,1e-08]
[1760338957931,14.75547217,197.17,197.16,1e-08]
[1760338958239,5.16926603,197.17,197.16,0.65000001]
[1760338958634,5.16926603,197.17,197.16,1e-08]
[1760338959641,5.16926603,197.17,197.16,0.65000001]
[1760338959833,5.16926603,197.17,197.16,1e-08]
[1760338960343,15.41547217,197.17,197.16,1e-08]
[1760338961248,14.75547217,197.17,197.16,1e-08]
[1760338962264,0.09750055,197.17,197.16,0.65000001]
[1760338962462,5.16926603,197.17,197.16,0.65000001]